fUST/lending_fUST_20250817
["ID","MTS","AMOUNT","RATE_DAILY","PERIOD"]
[379805042,1755414395303,480.0,0.00019788,2]
[379805043,1755414398461,2128.04639015,0.000198,2]
[379805044,1755414398486,2871.95360985,0.000198,2]
[379805045,1755414398801,480.0,0.00019788,2]
[379805046,1755414404733,1082.44595017,0.00019788,2]
[379805047,1755414407528,480.0,0.00019788,2]
[379805048,1755414408171,85.60043998,0.00019788,2]
[379805049,1755414408195,394.39956002,0.00019788,2]
[379805050,1755414409729,715.3,0.00019788,2]
[379805051,1755414410539,480.0,0.00019788,2]
[379805052,1755414410807,1000.0,0.000198,2]
[379805053,1755414411918,1000.0,0.000198,2]
[379805054,1755414413037,1000.0,0.000198,2]
[379805055,1755414414304,410.30043998,0.000198,2]
[379805056,1755414414327,103.51753673,0.000198,2]
[379805057,1755414414456,4896.48246327,0.000198,2]
[379805058,1755414414480,103.51753673,0.000198,2]
[379805059,1755414419976,1822.79,0.00019788,2]
[379805060,1755414425356,480.0,0.00019788,2]
[379805061,1755414426240,480.0,0.00019788,2]
[379805062,1755414428934,445.99105317,0.00019788,2]
[379805063,1755414430206,421.25850553,0.00019788,2]
[379805064,1755414430605,1246.44290457,0.000198,2]
[379805065,1755414430630,3753.55709543,0.000198,2]
[379805066,1755414432453,480.0,0.00019788,2]
[379805067,1755414434521,480.0,0.00019788,2]
[379805068,1755414436086,286.44290457,0.00019788,2]
[379805069,1755414436112,1359.56709543,0.00019788,2]
[379805070,1755414438693,480.0,0.00019788,2]
[379805071,1755414441032,480.0,0.00019788,2]
[379805072,1755414441653,480.0,0.00019788,2]
[379805073,1755414445950,2200.43290457,0.000198,2]
[379805074,1755414445988,2799.56709543,0.000198,2]
[379805076,1755414447121,481.41690375,0.00019788,2]
[379805077,1755414453138,480.0,0.00019788,2]
[379805078,1755414453781,480.0,0.00019788,2]
[379805079,1755414454950,480.0,0.00019788,2]
[379805080,1755414455727,279.01600082,0.00019788,2]
[379805081,1755414455750,200.98399918,0.00019788,2]
[379805082,1755414458621,480.0,0.00019788,2]
[379805083,1755414461393,480.0,0.00019788,2]
[379805084,1755414462502,480.0,0.00019788,2]
[379805085,1755414462554,3359.01600082,0.000198,2]
[379805086,1755414462579,1640.98399918,0.000198,2]
[379805087,1755414465802,480.0,0.00019788,2]
[379805088,1755414466659,480.0,0.00019788,2]
[379805089,1755414466926,463.23798436,0.00019788,2]
[379805090,1755414467386,481.09746156,0.00019788,2]
[379805091,1755414468361,480.71798147,0.00019788,2]
[379805092,1755414469921,480.0,0.00019788,2]
[379805093,1755414471842,480.0,0.00019788,2]
[379805094,1755414472321,13.96257343,0.00019788,2]
[379805095,1755414472351,446.52270517,0.00019788,2]
[379805097,1755414476693,480.0,0.00019788,2]
[379805098,1755414477261,480.0,0.00019788,2]
[379805099,1755414477348,1088.51828463,0.00019787,2]
[379805100,1755414477379,363.07370686,0.00019788,2]
[379805101,1755414478480,2141.88530334,0.000198,2]
[379805102,1755414478506,2858.11469666,0.000198,2]
[379805103,1755414479325,480.0,0.00019788,2]
[379805104,1755414480145,480.0,0.00019788,2]
[379805105,1755414480889,480.0,0.00019788,2]
[379805106,1755414481667,462.81597092,0.00019788,2]
[379805107,1755414482229,239.06933242,0.00019788,2]
[379805108,1755414482254,240.93066758,0.00019788,2]
[379805110,1755414485636,480.0,0.00019788,2]
[379805111,1755414486159,500.0,0.00019788,2]
[379805112,1755414486415,294.95834607,0.00019788,2]
[379805113,1755414488487,480.0,0.00019788,2]
[379805114,1755414490295,480.0,0.00019788,2]
[379805115,1755414492423,461.05146342,0.00019788,2]
[379805116,1755414493916,2063.05952293,0.000198,2]
[379805117,1755414493942,2936.94047707,0.000198,2]
[379805118,1755414495760,5.84095604,0.00019863,10]
[379805119,1755414495791,480.0,0.00019788,2]
[379805120,1755414495842,480.0,0.00019788,2]
[379805121,1755414496366,480.0,0.00019788,2]
[379805122,1755414497663,481.45701498,0.00019788,2]
[379805123,1755414498016,141.60250795,0.00019788,2]
[379805124,1755414498041,338.39749205,0.00019788,2]
[379805125,1755414498697,480.0,0.00019788,2]
[379805126,1755414500698,481.1624699,0.00019788,2]
[379805127,1755414501378,480.0,0.00019788,2]
[379805128,1755414503602,500.0,0.00019788,2]
[379805129,1755414503900,500.0,0.00019788,2]
[379805130,1755414504153,500.0,0.00019788,2]
[379805131,1755414504412,162.09890531,0.00019788,2]
[379805132,1755414504733,480.0,0.00019788,2]
[379805133,1755414505049,480.0,0.00019788,2]
[379805134,1755414507051,480.0,0.00019788,2]
[379805135,1755414508657,118.34113274,0.00019788,2]
[379805136,1755414508683,361.65886726,0.00019788,2]
[379805137,1755414509477,461.16645628,0.00019788,2]
[379805138,1755414510438,4177.17467646,0.000198,2]
[379805139,1755414510464,822.82532354,0.000198,2]
[379805140,1755414510708,4177.17467646,0.00019788,2]
[379805141,1755414510733,2237.74532354,0.00019788,2]
[379805142,1755414512195,480.0,0.00019788,2]
[379805143,1755414512362,480.0,0.00019788,2]
[379805144,1755414513074,480.0,0.00019788,2]
[379805145,1755414513558,499.82459895,0.00019788,2]
[379805146,1755414515591,480.0,0.00019788,2]
[379805147,1755414518837,342.43007751,0.00019788,2]
[379805148,1755414518862,137.56992249,0.00019788,2]
[379805149,1755414521786,480.0,0.00019788,2]
[379805151,1755414523480,480.0,0.00019788,2]
[379805152,1755414525782,480.0,0.00019788,2]
[379805153,1755414526016,480.0,0.00019788,2]
[379805154,1755414526852,480.0,0.00019788,2]
[379805155,1755414527155,2462.43007751,0.000198,2]
[379805156,1755414527181,2537.56992249,0.000198,2]
[379805157,1755414529458,480.0,0.00019788,2]
[379805158,1755414529932,480.0,0.00019788,2]
[379805159,1755414530579,480.0,0.00019788,2]
[379805160,1755414530616,460.22144188,0.00019788,2]
[379805161,1755414532182,480.0,0.00019788,2]
[379805162,1755414532485,82.20863563,0.00019788,2]
[379805163,1755414532511,397.79136437,0.00019788,2]
[379805164,1755414533915,551.94,0.00019788,2]
[379805165,1755414534496,579.50918138,0.00019788,2]
[379805166,1755414534685,480.0,0.00019788,2]
[379805168,1755414535744,514.18,0.00019788,2]
[379805169,1755414537202,462.59989361,0.00019788,2]
[379805170,1755414539338,480.0,0.00019788,2]
[379805171,1755414542120,480.0,0.00019788,2]
[379805172,1755414542514,480.0,0.00019788,2]
[379805173,1755414544233,573.97956064,0.000198,2]
[379805174,1755414544258,4426.02043936,0.000198,2]
[379805175,1755414544472,500.0,0.00019788,2]
[379805176,1755414544824,73.97956064,0.00019788,2]
[379805177,1755414544847,426.02043936,0.00019788,2]
[379805178,1755414547337,480.0,0.00019788,2]
[379805180,1755414551348,480.0,0.00019788,2]
[379805181,1755414555776,460.0,0.00019788,2]
[379805183,1755414557494,481.3029912,0.00019788,2]
[379805184,1755414559185,480.79032199,0.00019788,2]
[379805185,1755414559463,480.0,0.00019788,2]
[379805186,1755414560457,1711.88624745,0.000198,2]
[379805187,1755414560483,3288.11375255,0.000198,2]
[379805188,1755414561590,480.0,0.00019788,2]
[379805189,1755414563726,480.0,0.00019788,2]
[379805190,1755414565075,732.66,0.00019788,2]
[379805191,1755414565599,19.22624745,0.00019788,2]
[379805192,1755414565622,460.77375255,0.00019788,2]
[379805193,1755414565956,480.0,0.00019788,2]
[379805197,1755414575193,481.49284257,0.00019788,2]
[379805199,1755414575781,481.25729281,0.00019788,2]
[379805200,1755414576005,3096.47611207,0.000198,2]
[379805201,1755414576032,1903.52388793,0.000198,2]
[379805202,1755414576496,480.0,0.00019788,2]
[379805203,1755414577705,470.189501,0.00013699,2]
[379805204,1755414577737,480.0,0.00019788,2]
[379805205,1755414577918,480.61422028,0.00019788,2]
[379805206,1755414578251,1185.67239079,0.00018884,2]
[379805207,1755414578277,1169.97763041,0.00018884,2]
[379805208,1755414578570,480.0,0.00019788,2]
[379805209,1755414579827,480.0,0.00019788,2]
[379805210,1755414581720,480.0,0.00019788,2]
[379805211,1755414582249,480.0,0.00019788,2]
[379805212,1755414584949,500.69224744,0.00019788,2]
[379805213,1755414585772,480.0,0.00019788,2]
[379805214,1755414586769,461.89239036,0.00019788,2]
[379805215,1755414587080,460.21362179,0.00019788,2]
[379805216,1755414590019,7.22411,0.00019788,2]
[379805217,1755414590048,472.77589,0.00019788,2]
[379805218,1755414591543,480.0,0.00019788,2]
[379805219,1755414592899,4047.22411,0.000198,2]
[379805220,1755414592927,952.77589,0.000198,2]
[379805221,1755414593973,480.0,0.00019788,2]
[379805222,1755414595737,150.0,0.000189,2]
[379805223,1755414595835,202.4471012,0.00019788,2]
[379805224,1755414597836,480.0,0.00019788,2]
[379805225,1755414598045,481.59996816,0.00019788,2]
[379805226,1755414599709,480.0,0.00019788,2]
[379805229,1755414600548,154.42754671,0.00019788,2]
[379805230,1755414602517,480.0,0.00019788,2]
[379805231,1755414602684,480.0,0.00019788,2]
[379805232,1755414608178,658.74949393,0.00018884,2]
[379805233,1755414608230,344.97243727,0.00018884,2]
[379805234,1755414609551,4655.02756273,0.000198,2]
[379805235,1755414609576,344.97243727,0.000198,2]
[379805236,1755414609627,480.0,0.00019788,2]
[379805237,1755414618984,480.0,0.00019788,2]
[379805238,1755414619337,480.0,0.00019788,2]
[379805239,1755414621087,178.9264919,0.00019032,2]
[379805240,1755414621435,480.0,0.00019788,2]
[379805241,1755414621465,480.0,0.00019788,2]
[379805242,1755414622315,480.0,0.00019788,2]
[379805243,1755414623940,480.0,0.00019788,2]
[379805244,1755414625002,1116.10107083,0.000198,2]
[379805245,1755414625026,3883.89892917,0.000198,2]
[379805246,1755414625061,480.0,0.00019788,2]
[379805247,1755414626539,461.49381118,0.00019788,2]
[379805248,1755414627998,174.60725965,0.00019788,2]
[379805249,1755414628022,305.39274035,0.00019788,2]
[379805250,1755414630441,480.0,0.00019788,2]
[379805251,1755414630617,480.0,0.00019788,2]
[379805252,1755414630734,480.0,0.00019788,2]
[379805253,1755414630782,480.0,0.00019788,2]
[379805254,1755414631199,460.57418229,0.00019788,2]
[379805285,1755414632383,-858.95344586,0.00019863,10]
[379805289,1755414632395,-135.2055981,0.00019863,10]
[379805290,1755414632405,-674.531356,0.00019863,2]
[379805291,1755414632415,-535.12,0.00019868,2]
[379805292,1755414632426,-154.03,0.00019877,3]
[379805293,1755414632436,-462.13,0.00019877,3]
[379805295,1755414632445,-169.441141,0.00019885,2]
[379805297,1755414632456,-300.0,0.00019885,2]
[379805299,1755414632465,-1200.0,0.00019885,2]
[379805301,1755414632475,-500.0,0.00019886,2]
[379805303,1755414632485,-367.87750067,0.00019886,2]
[379805307,1755414632510,-132.12249933,0.00019886,2]
[379805309,1755414632519,-500.0,0.00019886,2]
[379805311,1755414632529,-480.0,0.00019886,2]
[379805313,1755414632538,-480.0,0.00019886,2]
[379805315,1755414632548,-480.0,0.00019886,2]
[379805317,1755414632557,-480.0,0.00019886,2]
[379805319,1755414632567,-480.0,0.00019886,2]
[379805321,1755414632576,-480.0,0.00019886,2]
[379805323,1755414632586,-1003.58,0.00019886,2]
[379805325,1755414632595,-480.0,0.00019886,2]
[379805327,1755414632605,-1456.68949667,0.00019886,2]
[379805355,1755414632938,480.0,0.00019788,2]
[379805358,1755414634134,480.0,0.00019788,2]
[379805359,1755414634185,480.0,0.00019788,2]
[379805360,1755414635971,480.0,0.00019788,2]
[379805370,1755414638554,-85.73050333,0.00019886,2]
[379805371,1755414638564,-500.0,0.00019886,2]
[379805372,1755414638574,-500.0,0.00019886,2]
[379805373,1755414638584,-480.0,0.00019886,2]
[379805374,1755414638594,-190.27412208,0.00019886,2]
[379805375,1755414638606,-995.53,0.00019886,2]
[379805376,1755414638616,-480.0,0.00019886,2]
[379805377,1755414638625,-480.0,0.00019886,2]
[379805378,1755414638635,-480.0,0.00019886,2]
[379805379,1755414638644,-509.75,0.00019886,2]
[379805380,1755414638654,-480.0,0.00019886,2]
[379805381,1755414638664,-480.0,0.00019886,2]
[379805382,1755414638673,-1337.7,0.00019886,2]
[379805383,1755414638683,-480.0,0.00019886,2]
[379805384,1755414638693,-2855.58,0.00019886,2]
[379805385,1755414638702,-480.0,0.00019886,2]
[379805386,1755414638711,-480.0,0.00019886,2]
[379805387,1755414638721,-480.0,0.00019886,2]
[379805388,1755414638730,-480.0,0.00019886,2]
[379805389,1755414638739,-480.0,0.00019886,2]
[379805390,1755414638749,-480.0,0.00019886,2]
[379805391,1755414638759,-959.07,0.00019886,2]
[379805392,1755414638768,-461.47523419,0.00019887,2]
[379805393,1755414638777,-480.0,0.00019887,2]
[379805394,1755414638786,-480.0,0.00019887,2]
[379805395,1755414638796,-480.0,0.00019887,2]
[379805396,1755414638805,-480.0,0.00019887,2]
[379805397,1755414638815,-480.0,0.00019887,2]
[379805398,1755414638824,-480.0,0.00019887,2]
[379805399,1755414638833,-480.0,0.00019887,2]
[379805400,1755414638842,-480.0,0.00019887,2]
[379805401,1755414638852,-480.0,0.00019887,2]
[379805402,1755414638861,-480.0,0.00019887,2]
[379805403,1755414638870,-480.0,0.00019887,2]
[379805404,1755414638879,-480.0,0.00019887,2]
[379805405,1755414638888,-480.0,0.00019887,2]
[379805406,1755414638898,-480.0,0.00019887,2]
[379805407,1755414638907,-480.0,0.00019887,2]
[379805408,1755414638917,-480.0,0.00019887,2]
[379805409,1755414638926,-480.0,0.00019887,2]
[379805410,1755414638935,-480.0,0.00019887,2]
[379805411,1755414638944,-443.40558596,0.00019887,2]
[379805412,1755414638954,-480.0,0.00019887,2]
[379805413,1755414638963,-480.0,0.00019887,2]
[379805414,1755414638972,-480.0,0.00019887,2]
[379805415,1755414638981,-480.0,0.00019887,2]
[379805416,1755414638990,-480.0,0.00019887,2]
[379805417,1755414638999,-480.0,0.00019887,2]
[379805418,1755414639008,-192.30718099,0.00019887,2]
[379805419,1755414639017,-480.0,0.00019887,2]
[379805420,1755414639028,-480.0,0.00019887,2]
[379805421,1755414639037,-480.0,0.00019887,2]
[379805422,1755414639046,-599.94,0.00019887,2]
[379805423,1755414639055,-480.0,0.00019887,2]
[379805424,1755414639064,-480.0,0.00019887,2]
[379805425,1755414639073,-461.63524623,0.00019887,2]
[379805426,1755414639082,-481.94065823,0.00019887,2]
[379805427,1755414639091,-480.0,0.00019887,2]
[379805428,1755414639101,-480.0,0.00019887,2]
[379805429,1755414639111,-460.0,0.00019887,2]
[379805430,1755414639126,-480.0,0.00019887,2]
[379805431,1755414639136,-480.0,0.00019887,2]
[379805432,1755414639145,-480.0,0.00019887,2]
[379805433,1755414639154,-480.0,0.00019887,2]
[379805434,1755414639163,-480.0,0.00019887,2]
[379805435,1755414639172,-480.0,0.00019887,2]
[379805436,1755414639181,-491.49945293,0.00019887,2]
[379805437,1755414639191,-1000.0,0.00019887,2]
[379805438,1755414639199,-461.59717259,0.00019887,2]
[379805439,1755414639208,-480.0,0.00019887,2]
[379805440,1755414639218,-480.0,0.00019887,2]
[379805441,1755414639227,-480.0,0.00019887,2]
[379805442,1755414639236,-480.0,0.00019887,2]
[379805443,1755414639244,-480.0,0.00019887,2]
[379805444,1755414639253,-515.0,0.00019887,2]
[379805445,1755414639262,-480.0,0.00019887,2]
[379805446,1755414639271,-480.0,0.00019887,2]
[379805447,1755414639281,-480.0,0.00019887,2]
[379805448,1755414639290,-500.0,0.00019887,2]
[379805449,1755414639299,-500.0,0.00019887,2]
[379805450,1755414639308,-480.0,0.00019887,2]
[379805451,1755414639317,-480.0,0.00019887,2]
[379805452,1755414639326,-480.0,0.00019887,2]
[379805453,1755414639335,-480.0,0.00019887,2]
[379805454,1755414639345,-480.68711543,0.00019887,2]
[379805455,1755414639354,-480.0,0.00019887,2]
[379805456,1755414639363,-480.0,0.00019887,2]
[379805457,1755414639372,-480.0,0.00019887,2]
[379805458,1755414639382,-480.0,0.00019887,2]
[379805459,1755414639391,-480.0,0.00019887,2]
[379805460,1755414639401,-480.0,0.00019887,2]
[379805461,1755414639411,-480.0,0.00019887,2]
[379805462,1755414639420,-480.0,0.00019887,2]
[379805463,1755414639431,-480.0,0.00019887,2]
[379805464,1755414639440,-480.0,0.00019887,2]
[379805465,1755414639449,-480.0,0.00019887,2]
[379805466,1755414639458,-480.0,0.00019887,2]
[379805467,1755414639466,-480.0,0.00019887,2]
[379805468,1755414639475,-480.0,0.00019887,2]
[379805469,1755414639484,-480.0,0.00019887,2]
[379805470,1755414639493,-480.0,0.00019887,2]
[379805471,1755414639503,-460.0,0.00019887,2]
[379805472,1755414639512,-480.0,0.00019887,2]
[379805473,1755414639521,-480.0,0.00019887,2]
[379805474,1755414639531,-440.0,0.00019887,2]
[379805475,1755414639540,-480.0,0.00019887,2]
[379805476,1755414639550,-460.50417461,0.00019887,2]
[379805477,1755414639559,-480.74408355,0.00019887,2]
[379805478,1755414639568,-480.0,0.00019887,2]
[379805479,1755414639578,-480.0,0.00019887,2]
[379805480,1755414639587,-515.99639057,0.00019887,2]
[379805481,1755414639596,-480.0,0.00019887,2]
[379805482,1755414639605,-480.0,0.00019887,2]
[379805483,1755414639614,-406.2899372,0.00019887,2]
[379805484,1755414639623,-480.0,0.00019887,2]
[379805485,1755414639632,-480.38282193,0.00019887,2]
[379805486,1755414639642,-440.61017239,0.00019887,2]
[379805487,1755414639651,-480.0,0.00019887,2]
[379805488,1755414639660,-480.0,0.00019887,2]
[379805489,1755414639669,-480.0,0.00019887,2]
[379805490,1755414639678,-480.0,0.00019887,2]
[379805491,1755414639688,-480.0,0.00019887,2]
[379805492,1755414639697,-480.0,0.00019887,2]
[379805493,1755414639706,-480.0,0.00019887,2]
[379805495,1755414639716,-480.0,0.00019887,2]
[379805497,1755414639726,-480.0,0.00019887,2]
[379805498,1755414639736,-480.0,0.00019887,2]
[379805499,1755414639746,-480.0,0.00019887,2]
[379805500,1755414639755,-480.0,0.00019887,2]
[379805501,1755414639764,-480.0,0.00019887,2]
[379805503,1755414639775,-480.0,0.00019887,2]
[379805505,1755414639784,-480.0,0.00019887,2]
[379805506,1755414639793,-480.0,0.00019887,2]
[379805507,1755414639803,-440.0,0.00019887,2]
[379805508,1755414639812,-480.0,0.00019887,2]
[379805509,1755414639821,-480.0,0.00019887,2]
[379805510,1755414639829,-480.0,0.00019887,2]
[379805511,1755414639839,-480.0,0.00019887,2]
[379805514,1755414639848,-480.0,0.00019887,2]
[379805517,1755414639857,-480.0,0.00019887,2]
[379805520,1755414639866,-480.0,0.00019887,2]
[379805522,1755414639876,-480.0,0.00019887,2]
[379805523,1755414639885,-480.0,0.00019887,2]
[379805524,1755414639895,-480.0,0.00019887,2]
[379805525,1755414639904,-480.0,0.00019887,2]
[379805526,1755414639914,-480.0,0.00019887,2]
[379805527,1755414639923,-491.32451023,0.00019887,2]
[379805528,1755414639933,-480.0,0.00019887,2]
[379805529,1755414639942,-480.0,0.00019887,2]
[379805530,1755414639951,-480.0,0.00019887,2]
[379805531,1755414639960,-480.26091724,0.00019887,2]
[379805532,1755414639969,-480.0,0.00019887,2]
[379805533,1755414639979,-440.0,0.00019887,2]
[379805534,1755414639988,-480.0,0.00019887,2]
[379805535,1755414639998,-480.0,0.00019887,2]
[379805536,1755414640007,-480.0,0.00019887,2]
[379805537,1755414640017,-480.0,0.00019887,2]
[379805538,1755414640026,-480.0,0.00019887,2]
[379805539,1755414640036,-480.0,0.00019887,2]
[379805540,1755414640045,-480.0,0.00019887,2]
[379805541,1755414640055,-480.0,0.00019887,2]
[379805542,1755414640064,-480.0,0.00019887,2]
[379805543,1755414640074,-480.0,0.00019887,2]
[379805544,1755414640084,-480.0,0.00019887,2]
[379805545,1755414640094,-480.0,0.00019887,2]
[379805546,1755414640104,-480.0,0.00019887,2]
[379805547,1755414640114,-440.93353992,0.00019887,2]
[379805548,1755414640135,-860.61,0.00019887,2]
[379805549,1755414640146,-423.73473517,0.00019887,2]
[379805550,1755414640155,-480.0,0.00019887,2]
[379805551,1755414640164,-480.0,0.00019887,2]
[379805552,1755414640174,-480.0,0.00019887,2]
[379805553,1755414640183,-611.46856462,0.00019887,2]
[379805554,1755414640192,-480.82814086,0.00019887,2]
[379805555,1755414640202,-461.95023282,0.00019887,2]
[379805556,1755414640211,-480.0,0.00019887,2]
[379805557,1755414640221,-421.08976152,0.00019887,2]
[379805558,1755414640231,-440.0,0.00019887,2]
[379805559,1755414640241,-480.0,0.00019887,2]
[379805560,1755414640251,-480.0,0.00019887,2]
[379805561,1755414640260,-480.0,0.00019887,2]
[379805562,1755414640270,-480.0,0.00019887,2]
[379805563,1755414640279,-480.0,0.00019887,2]
[379805564,1755414640288,-500.0,0.00019887,2]
[379805565,1755414640298,-480.0,0.00019887,2]
[379805566,1755414640308,-480.0,0.00019887,2]
[379805567,1755414640317,-480.0,0.00019887,2]
[379805568,1755414640327,-480.0,0.00019887,2]
[379805569,1755414640336,-480.0,0.00019887,2]
[379805570,1755414640346,-480.0,0.00019887,2]
[379805571,1755414640357,-480.0,0.00019887,2]
[379805572,1755414640366,-422.99827035,0.00019887,2]
[379805573,1755414640376,-480.0,0.00019887,2]
[379805574,1755414640386,-480.0,0.00019887,2]
[379805575,1755414640396,-480.0,0.00019887,2]
[379805576,1755414640405,-480.0,0.00019887,2]
[379805577,1755414640415,-480.0,0.00019887,2]
[379805578,1755414640424,-480.0,0.00019887,2]
[379805579,1755414640435,-480.0,0.00019887,2]
[379805580,1755414640444,-404.19674328,0.00019887,2]
[379805582,1755414640453,-426.59956408,0.00019887,2]
[379805583,1755414640462,-455.7098185,0.00019887,2]
[379805584,1755414640472,-480.0,0.00019887,2]
[379805585,1755414640481,-480.0,0.00019887,2]
[379805586,1755414640490,-460.77755688,0.00019887,2]
[379805587,1755414640500,-480.0,0.00019887,2]
[379805588,1755414640509,-480.0,0.00019887,2]
[379805589,1755414640519,-497.19,0.00019887,2]
[379805590,1755414640528,-480.0,0.00019887,2]
[379805591,1755414640537,-480.0,0.00019887,2]
[379805592,1755414640547,-480.0,0.00019887,2]
[379805593,1755414640556,-460.0,0.00019887,2]
[379805595,1755414640565,-480.0,0.00019887,2]
[379805597,1755414640575,-480.45102239,0.00019887,2]
[379805599,1755414640584,-480.0,0.00019887,2]
[379805601,1755414640594,-480.0,0.00019887,2]
[379805603,1755414640603,-480.0,0.00019887,2]
[379805604,1755414640612,-480.0,0.00019887,2]
[379805606,1755414640622,-480.0,0.00019887,2]
[379805608,1755414640632,-486.80836628,0.00019887,2]
[379805610,1755414640641,-480.0,0.00019887,2]
[379805612,1755414640651,-181.08672595,0.00019887,2]
[379805614,1755414640660,-443.16737919,0.00019887,2]
[379805616,1755414640670,-480.0,0.00019887,2]
[379805618,1755414640679,-481.73359356,0.00019887,2]
[379805620,1755414640689,-480.0,0.00019887,2]
[379805622,1755414640699,-480.0,0.00019887,2]
[379805624,1755414640708,-480.0,0.00019887,2]
[379805626,1755414640718,-480.0,0.00019887,2]
[379805628,1755414640726,-480.0,0.00019887,2]
[379805630,1755414640735,-480.0,0.00019887,2]
[379805632,1755414640744,-480.0,0.00019887,2]
[379805634,1755414640754,-480.0,0.00019887,2]
[379805636,1755414640763,-480.0,0.00019887,2]
[379805638,1755414640773,-461.05533903,0.00019887,2]
[379805640,1755414640783,-480.0,0.00019887,2]
[379805642,1755414640792,-480.0,0.00019887,2]
[379805644,1755414640802,-480.0,0.00019887,2]
[379805646,1755414640812,-480.0,0.00019887,2]
[379805648,1755414640822,-480.0,0.00019887,2]
[379805650,1755414640832,-480.0,0.00019887,2]
[379805652,1755414640842,-480.0,0.00019887,2]
[379805654,1755414640853,-480.0,0.00019887,2]
[379805656,1755414640862,-6884.82,0.00019887,2]
[379805658,1755414640872,-445.5598338,0.00019887,2]
[379805660,1755414640881,-480.0,0.00019887,2]
[379805662,1755414640890,-480.0,0.00019887,2]
[379805664,1755414640900,-480.0,0.00019887,2]
[379805666,1755414640910,-218.69221051,0.00019887,2]
[379805668,1755414640928,-480.0,0.00019887,2]
[379805670,1755414640938,-480.0,0.00019887,2]
[379805672,1755414640946,-481.25037141,0.00019887,2]
[379805674,1755414640956,-480.0,0.00019887,2]
[379805676,1755414640965,-500.0,0.00019887,2]
[379805678,1755414640975,-500.0,0.00019887,2]
[379805680,1755414640985,-500.0,0.00019887,2]
[379805682,1755414640994,-500.0,0.00019887,2]
[379805683,1755414641003,-965.49,0.00019887,2]
[379805684,1755414641013,-480.0,0.00019887,2]
[379805685,1755414641021,-503.52013504,0.00019887,2]
[379805686,1755414641031,-480.0,0.00019887,2]
[379805687,1755414641040,-461.14279068,0.00019887,2]
[379805688,1755414641049,-480.0,0.00019887,2]
[379805689,1755414641058,-480.0,0.00019887,2]
[379805690,1755414641068,-500.0,0.00019887,2]
[379805691,1755414641077,-480.0,0.00019887,2]
[379805692,1755414641086,-480.0,0.00019887,2]
[379805693,1755414641095,-480.0,0.00019887,2]
[379805694,1755414641104,-480.0,0.00019887,2]
[379805695,1755414641114,-500.0,0.00019887,2]
[379805696,1755414641125,-500.0,0.00019887,2]
[379805697,1755414641135,-480.0,0.00019887,2]
[379805698,1755414641144,-480.0,0.00019887,2]
[379805699,1755414641153,-4724.13,0.00019887,2]